Cogmind - Beta 14 @@@ ROGUE MODE // 2024.11.09 @ 06:48:37 Player: Fangrelle Result: Destroyed by G-47 Trooper with Particle Gun Performance ------------- Evolutions (2) 1000 Regions Visited (5) 1000 Robots Destroyed (107) 535 Value Destroyed (2401) 2401 Prototype IDs (7) 140 Alien Tech Used (0) 0 Bonus (35) 35 TOTAL SCORE: 5111 Bonus ------- High Alert Combat Kills 35 Cogmind --------- Core Integrity 0/550 Matter 145/300 Energy 7/265 System Corruption 0% Temperature Cool (8) Movement Hovering (406) Ox6 Location -8/Materials Parts ------- > --- POWER (1) -------- Improved Ion Engine > --- PROPULSION (2) --- Aerolev Unit Aerolev Unit > --- UTILITY (4) ------ Huge Storage Unit Shield Generator > --- WEAPON (4) ------- EMP Blaster Rocket Launcher Mini Grenade Launcher > --- INVENTORY (25) --- Aerolev Unit Aerolev Unit Improved Flight Unit Improved Flight Unit Cesium-ion Thruster Cesium-ion Thruster Cesium-ion Thruster Cesium-ion Thruster Cesium-ion Thruster Large Storage Unit High-capacity Matter Pod (200) High-capacity Matter Pod (189) Machine Analyzer Signal Interpreter Signal Interpreter Improved Terrain Scanner Advanced ECM Suite Improved Propulsion Shielding Improved Utility Shielding Improved Trap Extractor (0/6) Improved Datajack Peak State ------------ > --- POWER ------------ Cooled Ion Engine > --- PROPULSION ------- Light Treads Armored Wheel > --- UTILITY ---------- Huge Storage Unit Light Armor Plating Hacking Suite Hacking Suite > --- WEAPON ----------- Field Laser Field Laser Field Laser Gauss Rifle > --- INVENTORY -------- Improved Ion Engine Improved Flight Unit Improved Flight Unit Large Storage Unit High-capacity Matter Pod High-capacity Matter Pod Machine Analyzer Signal Interpreter Signal Interpreter Improved Terrain Scanner Advanced ECM Suite Light Armor Plating Light Armor Plating Shield Generator Improved Trap Extractor EMP Blaster Rocket Launcher Rocket Launcher Mini Grenade Launcher Improved Datajack Mining Claw [Rating: 31] Favorites ----------- Power Cooled Ion Engine Engine Cooled Ion Engine Propulsion Light Treads Treads Light Treads Leg Aluminum Leg Wheel Armored Wheel Hover Unit Aerolev Unit Flight Unit Improved Flight Unit Utility Hacking Suite Device ECM Suite Storage Huge Storage Unit Hackware Hacking Suite Protection Medium Armor Plating Weapon Heavy Assault Rifle Energy Gun Improved EM Shotgun Energy Cannon EM Pulse Cannon Ballistic Gun Heavy Assault Rifle Launcher Grenade Launcher Special Melee Weapon Improved Datajack Build | -11 -10 -10 -9 -9 -8 ------- Run | Yrd Mat Min Mat Min Mat Slots Evolved 4 | . . . 2 . 2 Power . | . . . . . . Propulsion . | . . . . . . Utility 2 | . . . . . 2 Weapon 2 | . . . 2 . . Parts Attached 95 | 6 11 4 34 5 35 Power 10 | 1 1 1 4 . 3 Engine 10 | 1 1 1 4 . 3 Core . | . . . . . . Reactor . | . . . . . . Propulsion 19 | 2 2 1 9 1 4 Treads 11 | 2 1 . 7 . 1 Leg 2 | . . 1 1 . . Wheel 2 | . 1 . . 1 . Hover 3 | . . . . . 3 Flight 1 | . . . 1 . . Utility 19 | 1 5 . 2 . 11 Device 4 | . 3 . . . 1 Storage 5 | 1 2 . 1 . 1 Processor . | . . . . . . Hackware 2 | . . . 1 . 1 Protection 8 | . . . . . 8 Artifact . | . . . . . . Weapon 47 | 2 3 2 19 4 17 Energy Gun 13 | 1 1 . 6 . 5 Energy Cannon 5 | . . . 1 . 4 Ballistic Gun 20 | 1 1 2 10 3 3 Ballistic Cannon . | . . . . . . Launcher 7 | . 1 . 2 . 4 Special Weapon . | . . . . . . Impact Weapon . | . . . . . . Slashing Weapon . | . . . . . . Piercing Weapon . | . . . . . . Special Melee Weapon 2 | . . . . 1 1 Unidentified Prototypes 7 | . . . 6 . 1 Parts Lost 33 | . 2 5 6 1 19 Power 5 | . 1 1 1 . 2 Propulsion 5 | . . 2 . 1 2 Utility 8 | . . 1 . . 7 Weapon 15 | . 1 1 5 . 8 Highest Loss Streak 5 | . 2 5 2 1 5 To Critical Strikes . | . . . . . . Average Slot Usage (%) 93 | . 99 89 91 96 85 Engine 11 | . 13 14 10 11 8 Treads 16 | . 18 10 18 18 6 Wheel 4 | . 9 10 . 3 8 Device 3 | . 13 10 . . . Storage 11 | . 14 14 11 11 9 Hackware 8 | . . . 11 11 16 Protection 1 | . . . . . 6 Energy Gun 9 | . 14 . 15 . 3 Ballistic Gun 21 | . 10 14 20 40 17 Launcher 1 | . 2 10 1 . . Peak Build Rating 31 | 6 8 8 25 21 31 Average Rating 17 | 4 7 7 19 20 25 On Entrance 10 | . 6 8 5 20 21 Naked Turns . | . . . . . . Heaviest Build 112 | 13 90 31 99 98 112 Greatest Support 40 | 40 40 20 40 40 20 Greatest Overweight (x) 31 | . 2 2 19 7 31 Average Overweight (x) 3 | . 1 1 1 3 7 Largest Inventory Capacity 25 | 8 25 15 25 25 25 Average Capacity 21 | 7 15 15 22 25 25 Most Carried 25 | 5 14 14 25 25 25 Average Carried 19 | 2 12 13 20 24 22 Final Capacity 25 | 8 15 15 25 25 25 Final Carried 25 | 5 13 12 25 25 21 Class Distribution -------------------- 45% | Scavenger-Gunner 33% | Mutant 6% | Scavenger-Tank 5% | Scavenger-Mutant 5% | Gunner Dominant Class ---------------- Mutant | -10/Materials Mutant | -10/Mines Scavenger-Gunner | -9/Materials Scavenger-Gunner | -9/Mines Scavenger-Tank | -8/Materials Resources | -11 -10 -10 -9 -9 -8 ----------- Run | Yrd Mat Min Mat Min Mat Matter Collected 2460 | 184 271 64 951 256 734 Remotely . | . . . . . . Salvage Created 3551 | . 390 . 1852 111 1198 Parts 239 | . 35 . 128 15 61 Haulers Intercepted 6 | . . . 5 . 1 Recyclers Shooed 2 | . . . 1 1 . Parts Field Recycled . | . . . . . . Retrieved Matter . | . . . . . . Parts Self-Destructed . | . . . . . . Prevented . | . . . . . . Kills | -11 -10 -10 -9 -9 -8 ------- Run | Yrd Mat Min Mat Min Mat Combat Hostiles Destroyed 71 | . 13 1 32 8 17 Guns 59 | . 11 1 29 8 10 Cannons 4 | . . . . . 4 AOE 6 | . 2 . 3 . 1 Classes Destroyed 13 | . 5 1 5 . 2 Worker 10 | . 2 . 6 . 2 Builder 2 | . . . . . 2 Tunneler 1 | . . . 1 . . Hauler 6 | . . . 5 . 1 Recycler 3 | . . . 1 . 2 Mechanic 3 | . . . 2 . 1 Operator 2 | . 1 . 1 . . Watcher 9 | . 3 . 5 . 1 Swarmer 29 | . 9 . 12 8 . Grunt 29 | . 4 . 13 . 12 Sentry 11 | . . . 7 . 4 Demolisher 1 | . . 1 . . . Hunter 1 | . . . . . 1 Best Kill Streak 6 | . 6 1 6 3 4 Combat Bots Only 5 | . 5 1 4 3 2 Max Kills in Single Turn 4 | . 2 1 3 1 4 Gunslinging 1 | . 1 . 1 . . Exploded 2 | . 2 . 1 . 1 Melee . | . . . . . . Uniques/NPCs Destroyed . | . . . . . . Combat | -11 -10 -10 -9 -9 -8 -------- Run | Yrd Mat Min Mat Min Mat Hostile Shots Fired 456 | . 78 12 182 29 155 Missed 127 | . 18 2 66 6 35 Damage Taken 4720 | . 593 350 1324 235 2218 Core 1077 | . 146 82 266 31 552 Absorbed by Shields 21 | . . . . . 21 Core Remaining (%) 44 | 100 . 8 . 25 . Volleys Fired 273 | . 78 6 98 13 78 Largest 4 | . 2 2 4 4 4 Hottest 217 | . 90 40 158 89 217 Shots Fired 666 | . 130 8 273 48 207 Gun 610 | . 129 8 268 48 157 Cannon 43 | . . . . . 43 Launcher 13 | . 1 . 5 . 7 Special . | . . . . . . Kinetic 409 | . 56 8 168 48 129 Thermal 105 | . 73 . 11 . 21 Explosive 13 | . 1 . 5 . 7 Electromagnetic 139 | . . . 89 . 50 Robot Hit Streak 12 | . 12 10 11 3 7 Robot Miss Streak 8 | . 8 . 6 2 6 Penetration Max 1 | . . . . . 1 Secondary Targets 8 | . 1 . 4 2 1 Max Gunslinging Chain 1 | . 1 . 1 1 1 Shots Hit Robots 373 | . 75 8 150 21 119 Core Hits 182 | . 30 3 88 11 50 Critical Kills 1 | . . . 1 . . Critical Parts Destroyed 2 | . . . 2 . . Critical Strikes 6 | . 2 . 3 . 1 Burn 3 | . 2 . . . 1 Destroy 3 | . . . 3 . . Melee Attacks . | . . . . . . Impact . | . . . . . . Slashing . | . . . . . . Piercing . | . . . . . . Sneak Attacks . | . . . . . . Combat Hostiles . | . . . . . . Follow-up Attacks . | . . . . . . Damage Inflicted 6016 | . 896 62 2347 306 2405 Guns 4563 | . 778 62 2082 306 1335 Cannons 601 | . . . . . 601 Explosions 852 | . 118 . 265 . 469 Melee . | . . . . . . Ramming . | . . . . . . Kinetic 2754 | . 243 62 1104 306 1039 Thermal 1131 | . 535 . 182 . 414 Explosive 585 | . 118 . 170 . 297 Electromagnetic 1546 | . . . 891 . 655 Impact . | . . . . . . Slashing . | . . . . . . Piercing . | . . . . . . Highest Corruption 4 | . . . 4 4 . Average Corruption 4 | . . . 4 4 . Corruption Purged . | . . . . . . Corruption Blocked . | . . . . . . Effects 110 | . . . 62 48 . Message Errors 31 | . . . 18 13 . Matter Fused 27 | . . . 15 12 . Heat Flow Errors 9 | . . . 6 3 . Energy Discharges 14 | . . . 10 4 . Parts Rejected 2 | . . . 2 . . Data Loss (minor) 11 | . . . 4 7 . Data Loss (major) 4 | . . . 2 2 . Misfires 7 | . . . 3 4 . Alerts 4 | . . . 1 3 . Weapon Failures 1 | . . . 1 . . Overload Shots . | . . . . . . Overflow Damage 39 | . . . 10 . 29 Projectiles 4 | . . . . . 4 Explosions 35 | . . . 10 . 25 Melee . | . . . . . . Knockbacks . | . . . . . . Impact . | . . . . . . Kinetic . | . . . . . . Secondary . | . . . . . . Self-Inflicted Damage 231 | . . . 65 . 166 Shots 9 | . . . 3 . 6 Rammed . | . . . . . . Targets Rammed . | . . . . . . Kicked . | . . . . . . Crushed . | . . . . . . Highest Temperature 829 | . 345 . 289 243 829 Average Temperature 109 | . 97 . 85 80 150 Received Heat Transfer 1593 | . 150 21 342 . 1080 Effects 31 | . 5 . 4 . 22 Shutdowns 3 | . 1 . . . 2 Energy Bleed 2 | . . . 1 . 1 Interference 8 | . 3 . 3 . 2 Matter Decay 5 | . . . . . 5 Short Circuit 1 | . 1 . . . . Damage (minor) 1 | . . . . . 1 Damage (major) 9 | . . . . . 9 Damage (core) 2 | . . . . . 2 Siege Activations . | . . . . . . Robots Corrupted 2 | . . . . . 2 Combat Hostiles 2 | . . . . . 2 Parts Fried 5 | . . . 2 . 3 Impact Corruptions . | . . . . . . Robots Melted . | . . . . . . Combat Hostiles . | . . . . . . Parts Melted 5 | . 1 . 2 . 2 Heat Transferred 2725 | . 1633 . 350 . 742 Parts Sabotaged . | . . . . . . Parts Stolen . | . . . . . . Parts Stripped . | . . . . . . Power Chain Reactions 4 | . . . 2 . 2 Alert | -11 -10 -10 -9 -9 -8 ------- Run | Yrd Mat Min Mat Min Mat Peak Influence 483 | . 338 115 483 186 186 Initial 186 | . . 115 37 186 . Average 131 | . 73 109 263 47 82 Maximum Alert Level 2 | . 1 . 2 . . Low Security (%) 75 | 100 78 100 42 100 100 Level 1 16 | . 21 . 32 . . Level 2 8 | . . . 25 . . Level 3 . | . . . . . . Level 4 . | . . . . . . Level 5 . | . . . . . . High Security . | . . . . . . Max Security . | . . . . . . Squads Dispatched 7 | . 3 . 1 . 3 Investigation 3 | . 2 . . . 1 Extermination . | . . . . . . Reinforcement 2 | . 1 . 1 . . Assault . | . . . . . . Garrison 2 | . . . . . 2 Intercept . | . . . . . . Searches Triggered . | . . . . . . Construction Impeded . | . . . . . . Haulers Reinforced . | . . . . . . Active Scanning Responses . | . . . . . . Cargo Convoy Interrupts . | . . . . . . Stealth | -11 -10 -10 -9 -9 -8 --------- Run | Yrd Mat Min Mat Min Mat Distress Signals 2 | . 1 . . . 1 Communications Jammed . | . . . . . . Distress Signals . | . . . . . . Times Spotted 114 | . 26 3 45 8 32 Peak Tracking Total 5 | . 3 2 4 3 5 Tactical Retreats 11 | . 3 . 2 . 6 Traps | -11 -10 -10 -9 -9 -8 ------- Run | Yrd Mat Min Mat Min Mat Traps Triggered 5 | . 2 . 1 1 1 Indirectly . | . . . . . . Trap Hack Attempts . | . . . . . . Triggered . | . . . . . . Disarmed . | . . . . . . Reprogrammed . | . . . . . . Reused . | . . . . . . Traps Extracted . | . . . . . . Installed . | . . . . . . Triggered . | . . . . . . Machines | -11 -10 -10 -9 -9 -8 ---------- Run | Yrd Mat Min Mat Min Mat Machines Disabled 6 | . 2 . 2 . 2 Max in Single Turn 2 | . 2 . 1 . 1 Garrison Access 1 | . . . . . 1 Machines Repaired . | . . . . . . Machines Dismantled . | . . . . . . Machines Sabotaged . | . . . . . . Overloaded Fab Kills . | . . . . . . Hacking | -11 -10 -10 -9 -9 -8 --------- Run | Yrd Mat Min Mat Min Mat Machines Accessed 26 | . 7 . 9 1 9 Terminals 19 | . 5 . 7 . 7 Fabricators . | . . . . . . Repair Stations 1 | . . . 1 . . Recycling Units 3 | . 2 . . . 1 Scanalyzers 1 | . . . 1 . . Garrison Access 1 | . . . . . 1 Total Hacks 89 | . 26 . 32 1 30 Successful 64 | . 16 . 25 1 22 Failed 25 | . 10 . 7 . 8 Catastrophic 1 | . . . . . 1 Database Lockouts . | . . . . . . Manual 81 | . 25 . 28 . 28 Terminals 70 | . 17 . 27 . 26 Fabricators . | . . . . . . Repair Stations 1 | . . . 1 . . Recycling Units 11 | . 9 . . . 2 Scanalyzers 4 | . . . 4 . . Garrison Access 2 | . . . . . 2 Terminal Hacks 6 | . . . 4 1 1 Robot Analysis 2 | . . . 2 . . Open Door 1 | . . . . 1 . Terminal Index 3 | . . . 2 . 1 Fabricator Hacks . | . . . . . . Repair Station Hacks . | . . . . . . Recycling Unit Hacks 2 | . 2 . . . . Report Inventory 1 | . 1 . . . . Retrieve Components 1 | . 1 . . . . Scanalyzer 4 | . . . 4 . . Insert Component 2 | . . . 2 . . Analyze 2 | . . . 2 . . Garrison Access Hacks 2 | . . . . . 2 Seal Access 1 | . . . . . 1 Coupler Status 1 | . . . . . 1 Unauthorized Hacks 50 | . 14 . 17 . 19 Terminals 41 | . 8 . 16 . 17 Track 1 | . 1 . . . . Assimilate 7 | . 1 . 4 . 2 Botnet 18 | . 4 . 7 . 7 Operators 4 | . 1 . 1 . 2 Skim 11 | . 1 . 4 . 6 Fabricators . | . . . . . . Repair Stations 1 | . . . 1 . . Mechanics 1 | . . . 1 . . Recycling Units 8 | . 6 . . . 2 Monitor 1 | . 1 . . . . Reject 2 | . 1 . . . 1 Recyclers 1 | . 1 . . . . Mask 2 | . 1 . . . 1 Tunnel 2 | . 2 . . . . Scanalyzers . | . . . . . . Garrison Access . | . . . . . . Data Cores Recovered . | . . . . . . Used . | . . . . . . Hacking Detections 22 | . 7 . 7 . 8 Full Trace Events 3 | . 2 . . . 1 Feedback Events . | . . . . . . Feedback Blocked . | . . . . . . Robot Schematics Acquired . | . . . . . . Robots Built . | . . . . . . Authchips . | . . . . . . Time . | . . . . . . Total Robot Build Rating . | . . . . . . Part Schematics Acquired 2 | . . . 2 . . Parts Built . | . . . . . . Authchips . | . . . . . . Time . | . . . . . . Total Part Build Rating . | . . . . . . Parts Repaired . | . . . . . . Time . | . . . . . . Parts Recycled . | . . . . . . Recycled Matter . | . . . . . . Retrieved Matter . | . . . . . . Retrieved Components . | . . . . . . Parts Scanalyzed 2 | . . . 2 . . Part Schematics Acquired 2 | . . . 2 . . Parts Damaged . | . . . . . . Bothacking | -11 -10 -10 -9 -9 -8 ------------ Run | Yrd Mat Min Mat Min Mat Used RIF Installer . | . . . . . . Robots Hacked . | . . . . . . Non-combat . | . . . . . . Combat . | . . . . . . Robot Hacks Applied . | . . . . . . Relay Couplers Released 1 | . . . . . 1 Machine Destruction 1 | . . . . . 1 Fabnet Peak Effective % . | . . . . . . Robots Rewired . | . . . . . . Allies Hacked . | . . . . . . Hacks Repelled . | . . . . . . Allies | -11 -10 -10 -9 -9 -8 -------- Run | Yrd Mat Min Mat Min Mat Total Allies 1 | . . . . 1 . Largest Group 1 | . . . . 1 . Highest-Rated Group 31 | . . . . 31 . Highest-Rated Ally 31 | . . . . 31 . Total Orders . | . . . . . . Ally Attacks . | . . . . . . Total Damage . | . . . . . . Kills . | . . . . . . Allies Corrupted . | . . . . . . Allies Melted . | . . . . . . Intel | -11 -10 -10 -9 -9 -8 ------- Run | Yrd Mat Min Mat Min Mat Robot Analysis Total 2 | . . . 2 . . Derelict Logs Recovered 1 | . . . . 1 . Drone Launches . | . . . . . . Drone Recoveries . | . . . . . . Exploration | -11 -10 -10 -9 -9 -8 ------------- Run | Yrd Mat Min Mat Min Mat Turns Passed 10724 | 93 2740 372 3482 2246 1791 Spaces Moved 3473 | 52 1002 146 997 779 497 Core 7 | 3 . . . . 4 Treads 2076 | 49 481 116 935 481 14 Legs 85 | . . 30 55 . . Wheels 1269 | . 521 . . 298 450 Hover 29 | . . . . . 29 Flight 7 | . . . 7 . . Fastest Speed 50 | 50 110 240 160 195 180 Average Speed 244 | 153 163 244 312 272 236 Slowest Speed 1600 | 160 320 260 1390 320 1600 Overloaded Moves . | . . . . . . Propulsion Burnouts . | . . . . . . Robots Hopped . | . . . . . . Cave-ins Triggered . | . . . . . . Exploration Rate (%) 55 | 4 82 33 72 99 40 Regions Visited 5 Branch Regions 2 Pre-discovered Areas 2 | . 2 . . . . Known Exits Taken . | . . . . . . Unknown Exits Taken 5 | 1 1 1 1 1 . Scrap Searched 3 | . . 1 . 2 . Spaces Dug 15 | . . . 15 . . Terrain Destroyed 156 | . 7 . 67 . 82 Melee . | . . . . . . Projectile 2 | . . . . . 2 AOE 154 | . 7 . 67 . 80 Terrain Rammed . | . . . . . . Walls Destroyed . | . . . . . . Machines Disabled . | . . . . . . Actions | -11 -10 -10 -9 -9 -8 --------- Run | Yrd Mat Min Mat Min Mat Total 5208 | 62 1987 155 1174 882 948 Wait 1255 | . 876 . 2 67 310 Move 3468 | 51 1001 145 996 778 497 Hop . | . . . . . . Pick Up 57 | 5 14 . 19 8 11 Fast Attach 56 | 6 4 . 23 2 21 Attach 24 | . 6 2 4 1 11 Detach 7 | . 2 . 2 1 2 Swap 15 | . 1 2 7 2 3 Drop 52 | . 5 . 23 9 15 Fire 273 | . 78 6 98 13 78 Melee . | . . . . . . Ram . | . . . . . . Kick . | . . . . . . Crush . | . . . . . . Escape Stasis . | . . . . . . Rewire 1 | . . . . 1 . Trap . | . . . . . . Miscellaneous . | . . . . . . Route ------- -11/Scrapyard -10/Materials (discovered 4 exits: *Mat x2 / [*Min x2]) -10/Mines (discovered 2 exits: *Mat x2) -9/Materials (discovered 4 exits: *Mat x3 / *Min) -9/Mines (discovered 2 exits: *Mat x2) -8/Materials (discovered 1 exit: [*Fac]) History --------- Turn | Location | Event 13 | -11/Scrapyard | Discovered new exit (range 14) 94 | -11/Scrapyard | Entered Materials 305 | -10/Materials | Build established: Mutant 535 | -10/Materials | Discovered new exit (range 14) 1178 | -10/Materials | Discovered new exit (range 16) 1351 | -10/Materials | Discovered new exit (range 3) 2334 | -10/Materials | Discovered new exit (range 15) 2357 | -10/Materials | Core integrity fell below 50% 2834 | -10/Materials | Entered Mines 2856 | -10/Mines | Assembled infested the area 3126 | -10/Mines | Core integrity fell below 20% 3138 | -10/Mines | Discovered new exit (range 13) 3156 | -10/Mines | Lost 5 parts (1p2n1u1w) 3185 | -10/Mines | Discovered new exit (range 9) 3206 | -10/Mines | Entered Materials 3206 | -9/Materials | Evolved 2 slots: Weapon x2 3989 | -9/Materials | Build established: Scavenger-Gunner 4165 | -9/Materials | Discovered new exit (range 4) 4649 | -9/Materials | Discovered new exit (range 14) 5016 | -9/Materials | Discovered new exit (range 14) 5131 | -9/Materials | Core integrity fell below 50% 6269 | -9/Materials | Discovered new exit (range 16) 6688 | -9/Materials | Entered Mines 6695 | -9/Mines | Received a Rocket Launcher from a helpful Derelict 6740 | -9/Mines | Met a Derelict bent on vengeance 7351 | -9/Mines | Learned Materials garrison access intel 7729 | -9/Mines | Discovered new exit (range 4) 7739 | -9/Mines | Received a Mining Laser from a helpful Derelict 8124 | -9/Mines | Met a Derelict who couldn't figure out how to use a Trap Extractor 8381 | -9/Mines | Discovered new exit (range 10) 8934 | -9/Mines | Entered Materials 8934 | -8/Materials | Evolved 2 slots: Utility x2 8935 | -8/Materials | Loaded intel: 1 garrison access location 9369 | -8/Materials | Build established: Scavenger-Tank 9806 | -8/Materials | Build established: Scavenger-Mutant 9920 | -8/Materials | Garrison activated, responded to threat 10179 | -8/Materials | Garrison activated, responded to threat 10201 | -8/Materials | Core integrity fell below 50% 10224 | -8/Materials | Lost 3 parts (1p1n1u) 10256 | -8/Materials | Discovered new exit (range 6) 10641 | -8/Materials | Build established: Hacker-Mutant 10672 | -8/Materials | Core integrity fell below 20% 10725 | -8/Materials | Destroyed by G-47 Trooper with Particle Gun Last Messages --------------- 10674_ Hacking Suite destroyed. 10692_ Critical hit (Burn: +37). 10693_ K-01 Serf collects debris. 10693_ M-13 Machinist repairs G-50 Soldier. 10695_ M-13 Machinist repairs Adv. Heat Sink. 10696_ Lgt. Armor Plating destroyed. 10696_ Acquired 60 matter. 10697_ K-01 Serf collects debris. 10700_ Acquired 60 matter. 10700_ K-01 Serf collects debris. 10703_ EM Pulse Cannon destroyed. 10705_ K-01 Serf collects debris. 10713_ Hacking Suite destroyed. 10715_ Acquired Imp. Ion Engine. 10720_ M-13 Machinist destroyed. 10720_ Destroyed Lgt. Ion Engine. 10720_ U-05 Engineer destroyed. 10720_ K-01 Serf destroyed. 10720_ K-01 Serf collects debris. 10723_ Electrolysis Chamber disabled. Map ----- +----------------------------------------------------+ | ??????????????????????????????????# ! "" | | ??????????????????????????????????# = / T | | ??????????????????????????????????########+### | | ?????????????????????????????????????????# #?# | | ?????????????????????????????????????????# ##### # | | ??????????????????????????????############ ## #" " | | ??????????????????????????????# * ## """"" " | | ??????????????????????????????# ## % " | | ??????????????????????????????# ## ""# | | ??????????????????????????????# """ ## ### | | ??????????????????????????????# """"" + #?? | | ??????????????????????????????# """"" # #?? | | ???????????????????#####??????# """"" # #?? | | ???????????????????# ??? ??# """ # #?? | | ???????????????????# """ ??########### ##? | | ???????????????????# """ ????????????# #? | | ??????????? ???????# """?????????????# #? | | ??????????! ??????# ????????########+## +? | | ???????????? ?????# ????????# # #? | | ???????????? ???# ????????# """ """ # #? | | ???????????? ?# ! / ????????# """ """ # #? | | ??????????? # ????????# """ """ # #? | | ??????????? #????????# # #? | | ??????? /// " ! =########## # #? | | ?????? = + "T" =# #? | | ?????? g% @########## #???? | | ????????+######### ##???????###########???? | | ?????????????????# == !#?????????????????????? | | ???????????????### #?????????????????????? | | ???????????????? + " "" #?????????????????????? | | ?????????????????# """" k#?????????????????????? | | ?????????????????# " ! #?????????????????????? | | ?????????????????# #?????????????????????? | | ?????????????????# / #?????????????????????? | | ?????????????????# #?????????????????????? | | ?????????????????###########?????????????????????? | | ?????????????????????????????????????????????????? | | ?????????????????????????????????????????????????? | | ?????????????????????????????????????????????????? | | ?????????????????????????????????????????????????? | | ?????????????????????????????????????????????????? | | ?????????????????????????????????????????????????? | | ?????????????????????????????????????????????????? | | ?????????????????????????????????????????????????? | | | | | | | | | | | | | +----------------------------------------------------+ Best States ------------- Heat Dissipation 31 Energy Generation 14 Energy Capacity 280 Matter Stores 300 Matter Capacity 300 Sight Range 16 Terrain Scan Density 10 ECM Strength 1 Armor Coverage 225 Utility Shielding 66 Evasion (%) 40 Recoil Reduction 2 Offensive Hacking 20 Item Schematics ----------------- Hacking Suite | -9/Materials | Scanalyzed Imp. Flight Unit | -9/Materials | Scanalyzed Robot Schematics ------------------ None Fabricated ------------ Nothing Alien Tech Used ----------------- None Achievements -------------- None Challenges ------------ None Game ------ Seed ChromaticInsulatedAutocannon Manual? 0 Play Time 00:46:39 Cumulative 27.6 hours Start 2024.11.09 @ 06:03:51 End 2024.11.09 @ 06:48:37 Sessions 1 Manual Loads 0 Difficulty Rogue Special Mode None Game No. 56 Rogue 56 Adventurer 0 Explorer 0 Win Type - Total 0 Types 0/0/0/0/0/0/0/0/0 Lore% 22 Gallery% 24 Achievement% 28 Wizard Run 0 Options --------- Layout 0 ASCII 0 Keyboard 0 Movement Mouse Keybinds 0 Fullscreen 1 Font 24/Smallcaps Map View 91x25 Zoom Use 75% Tactical HUD 1 Map Filters NONE Filters NONE Steam 1 RUN: 2110ab90-f073-4009-8270-cc5fac98eea5